bitfinex-derivatives/quotes_BTCF0:USTF0_20260214
["timestamp","ask_amount","ask_price","bid_price","bid_amount"]
[1771067584695,0.01448,70020.0,70006.0,0.01448]
[1771067584696,0.014291,70012.0,70006.0,0.01448]
[1771067584999,0.02877,70016.0,70011.0,0.014291]
[1771067585295,0.02858,70017.0,70011.0,0.014291]
[1771067585495,0.014289,70020.0,70014.0,0.01429]
[1771067585897,0.014289,70023.0,70013.0,0.01429]
[1771067586094,0.01448,70023.0,70018.0,0.014289]
[1771067586395,0.01448,70026.0,70020.0,0.014289]
[1771067586791,0.014289,70019.0,70014.0,0.14296]
[1771067586997,0.014289,70020.0,70014.0,0.01429]
[1771067587297,0.01448,70022.0,70018.0,0.014289]
[1771067587490,0.028769,70022.0,70016.0,0.01429]
[1771067587797,0.01448,70027.0,70018.0,0.014289]
[1771067588194,0.014288,70025.0,70015.0,0.01429]
[1771067588397,0.07340832,70041.0,70029.0,0.014287]
[1771067588691,0.07340832,70054.0,70027.0,0.07715943]
[1771067588892,0.88802,70062.0,70000.0,0.15571273]
[1771067588893,0.01448,70053.0,70040.0,0.014285]
[1771067589091,0.014284,70046.0,70039.0,0.01448]
[1771067589492,0.014283,70050.0,70039.0,0.09163943]
[1771067589690,0.014285,70039.0,70020.0,0.0002]
[1771067589892,0.014285,70042.0,70027.0,0.07715943]
[1771067590092,0.08769232,70043.0,70021.0,0.07715943]
[1771067590294,0.014288,70026.0,70022.0,0.01452]
[1771067590494,0.014286,70036.0,70022.0,0.01452]
[1771067590495,0.014286,70034.0,70022.0,0.01452]
[1771067590698,0.014283,70048.0,70031.0,0.07715943]
[1771067590888,0.014285,70040.0,70032.0,0.15748]
[1771067591090,0.014284,70046.0,70033.0,0.15748]
[1771067591288,0.014287,70032.0,70016.0,0.06491943]
[1771067591488,0.014286,70034.0,70022.0,0.014289]
[1771067591788,0.014288,70027.0,70023.0,0.01452]
[1771067591992,0.07340832,70039.0,70017.0,0.07715943]
[1771067592304,0.014288,70024.0,70018.0,0.15744]
[1771067592495,0.014288,70023.0,70019.0,0.14292]
[1771067592691,0.014287,70031.0,70019.0,0.14292]
[1771067592893,0.014287,70029.0,70020.0,0.01452]
[1771067593094,0.014287,70032.0,70021.0,0.15744]
[1771067593300,0.014288,70024.0,70022.0,0.15744]
[1771067593498,0.014287,70030.0,70023.0,0.01452]
[1771067593897,0.014289,70029.0,70023.0,0.01452]
[1771067594196,0.014287,70032.0,70024.0,0.01452]
[1771067594399,0.0002,70055.0,70028.0,0.07715943]
[1771067594599,0.0002,70055.0,70000.0,0.14308741]
[1771067594600,0.014282,70054.0,70035.0,0.014286]
[1771067594793,0.014283,70052.0,70043.0,0.014284]
[1771067595105,0.014281,70059.0,70042.0,0.01452]
[1771067595395,0.01452,70061.0,70042.0,0.01452]
[1771067595396,0.014281,70060.0,70051.0,0.014283]
[1771067595597,0.014281,70057.0,70049.0,0.014283]
[1771067595800,0.014281,70059.0,70048.0,0.01452]
[1771067595801,0.014281,70059.0,70048.0,0.028803]
[1771067596097,0.00071344,70083.0,70048.0,0.01452]
[1771067596098,0.07340832,70065.0,70048.0,0.01452]
[1771067596297,0.014282,70053.0,70049.0,0.01452]
[1771067596491,0.014282,70053.0,70045.0,0.014284]
[1771067596492,0.028801,70061.0,70050.0,0.01452]
[1771067596690,0.014281,70060.0,70050.0,0.01452]
[1771067597095,0.014283,70049.0,70042.0,0.014284]
[1771067597402,0.07340832,70059.0,70043.0,0.171724]
[1771067597597,0.07340832,70059.0,70043.0,0.15744]
[1771067597801,0.014283,70048.0,70043.0,0.15744]
[1771067598104,0.08769032,70055.0,70043.0,0.15744]
[1771067598399,0.014283,70048.0,70043.0,0.15744]
[1771067598598,0.014283,70049.0,70043.0,0.01452]
[1771067598794,0.014283,70051.0,70043.0,0.028804]
[1771067599397,0.014282,70052.0,70045.0,0.014284]
[1771067599599,0.028802,70053.0,70044.0,0.014284]
[1771067599798,0.028802,70053.0,70043.0,0.01452]
[1771067599799,0.014283,70049.0,70043.0,0.01452]
[1771067600002,0.014283,70048.0,70043.0,0.01452]
[1771067600303,0.014284,70047.0,70043.0,0.01452]
[1771067600497,0.014284,70046.0,70043.0,0.01452]
[1771067601395,0.014284,70046.0,70037.0,0.014285]
[1771067601396,0.014284,70043.0,70037.0,0.014285]
[1771067601597,0.014284,70044.0,70038.0,0.028765]
[1771067601804,0.014284,70046.0,70040.0,0.014285]
[1771067601998,0.014284,70046.0,70038.0,0.028765]
[1771067602201,0.014283,70048.0,70040.0,0.014285]
[1771067602399,0.028763,70048.0,70041.0,0.014285]
[1771067602603,0.014284,70046.0,70041.0,0.014285]
[1771067603108,0.028763,70048.0,70015.0,0.07731122]
[1771067603109,0.014286,70034.0,70015.0,0.07731122]
[1771067603296,0.014287,70030.0,70022.0,0.014289]
[1771067603606,0.014287,70032.0,70024.0,0.014288]
[1771067603804,0.014287,70032.0,70016.0,0.01429]
[1771067603805,0.014288,70023.0,70016.0,0.01429]
[1771067604007,0.07340832,70026.0,69998.0,0.09145243]
[1771067604299,0.014293,70002.0,69995.0,0.171694]
[1771067604500,0.014292,70007.0,69995.0,0.171694]
[1771067604501,0.014292,70005.0,69995.0,0.01452]
[1771067604695,0.014292,70004.0,69995.0,0.01452]
[1771067604894,0.01452,70007.0,70003.0,0.014292]
[1771067605099,0.01452,70008.0,70002.0,0.014293]
[1771067605294,0.014292,70007.0,70002.0,0.014293]
[1771067605494,0.014292,70007.0,70001.0,0.014293]
[1771067605699,0.014292,70007.0,70000.0,0.014293]
[1771067605899,0.014293,70003.0,69997.0,0.014294]
[1771067606196,0.014293,70003.0,69995.0,0.01452]
[1771067606400,0.014293,70001.0,69995.0,0.028814]
[1771067606704,0.014292,70007.0,69997.0,0.014294]
[1771067606900,0.014292,70005.0,69997.0,0.014294]
[1771067607099,0.014293,70003.0,69997.0,0.014294]
[1771067607301,0.014293,70002.0,69997.0,0.014294]
[1771067608103,0.014292,70004.0,69998.0,0.014293]
[1771067608300,0.01452,70006.0,69996.0,0.014294]
[1771067608301,0.01452,70006.0,70005.0,0.014292]
[1771067608504,0.01448,70008.0,70002.0,0.014293]
[1771067608706,0.014291,70012.0,70002.0,0.014293]
[1771067609002,0.01448,70017.0,70009.0,0.014291]
[1771067609211,0.01448,70017.0,70010.0,0.014291]
[1771067609212,0.02877,70017.0,70010.0,0.014291]
[1771067609405,0.01429,70015.0,70009.0,0.014291]
[1771067609807,0.02877,70017.0,70010.0,0.014291]
[1771067610010,0.01429,70015.0,70009.0,0.014291]
[1771067610208,0.02877,70017.0,70009.0,0.014291]
[1771067610509,0.01429,70014.0,70009.0,0.014291]
[1771067610706,0.014287,70031.0,70008.0,0.07715943]
[1771067610918,0.01429,70016.0,70008.0,0.07715943]
[1771067611208,0.01429,70017.0,70011.0,0.014291]
[1771067611410,0.014292,70008.0,69989.0,0.14292]
[1771067611614,0.01452,70010.0,70005.0,0.014292]
[1771067611914,0.014291,70011.0,69997.0,0.09142641]
[1771067611915,0.014291,70011.0,70004.0,0.014292]
[1771067612111,0.014291,70009.0,70004.0,0.014292]
[1771067612310,0.01452,70010.0,70005.0,0.014292]
[1771067612704,0.014291,70011.0,70003.0,0.028584]
[1771067612910,0.01452,70011.0,70003.0,0.028584]
[1771067613115,0.014291,70010.0,70005.0,0.014292]
[1771067613311,0.028811,70011.0,70006.0,0.014292]
[1771067613615,0.01429,70013.0,70008.0,0.014291]
[1771067614014,0.01429,70013.0,70007.0,0.014292]
[1771067614202,0.01429,70013.0,70006.0,0.01452]
[1771067614407,0.014291,70009.0,70006.0,0.01452]
[1771067614609,0.014291,70009.0,70005.0,0.00046003]
[1771067614803,0.014291,70009.0,70005.0,0.01452]
[1771067615412,0.02881,70014.0,69997.0,0.157214]
[1771067615413,0.014292,70005.0,69997.0,0.157214]
[1771067615714,0.014291,70008.0,70003.0,0.014292]
[1771067615910,0.02881,70014.0,70003.0,0.01452]
[1771067616115,0.02881,70014.0,70004.0,0.014292]
[1771067616116,0.01452,70014.0,70004.0,0.014292]
[1771067616311,0.014291,70012.0,70006.0,0.014292]
[1771067616612,0.014291,70011.0,70005.0,0.014292]
[1771067616811,0.01452,70014.0,70002.0,0.01452]
[1771067617009,0.014292,70008.0,70003.0,0.014292]
[1771067617214,0.014291,70012.0,70002.0,0.028813]
[1771067617516,0.014292,70007.0,70002.0,0.028813]
[1771067617814,0.014291,70009.0,70003.0,0.014292]
[1771067618014,0.014292,70008.0,70002.0,0.014293]
[1771067618204,0.014292,70006.0,70001.0,0.01452]
[1771067619211,0.014292,70006.0,69997.0,0.157214]
[1771067619417,0.014293,70003.0,69998.0,0.028773]
[1771067619608,0.014293,70002.0,69997.0,0.157214]
[1771067619813,0.014293,70002.0,69997.0,0.1574]
[1771067620009,0.014293,70001.0,69997.0,0.014315]
[1771067620410,0.014293,70000.0,69997.0,0.014315]
[1771067620610,0.10043372,70026.0,70014.0,0.01429]
[1771067620814,0.01448,70025.0,70008.0,0.11009031]
[1771067621114,0.14292,70038.0,70030.0,0.014287]
[1771067621318,0.01448,70037.0,70032.0,0.014287]
[1771067621512,0.014286,70036.0,70031.0,0.014287]
[1771067622012,0.014287,70032.0,70027.0,0.014287]
[1771067622217,0.014287,70030.0,70025.0,0.014288]
[1771067622607,0.014287,70030.0,70024.0,0.014288]
[1771067622608,0.014287,70029.0,70024.0,0.014288]
[1771067623110,0.01452,70031.0,70025.0,0.014288]
[1771067623311,0.01452,70031.0,70027.0,0.014288]
[1771067623511,0.028807,70031.0,70026.0,0.014288]
[1771067624213,0.01452,70031.0,70029.0,0.014287]
[1771067624410,0.01452,70031.0,70027.0,0.014288]
[1771067624610,0.01452,70031.0,70028.0,0.014287]
[1771067625011,0.01452,70031.0,70022.0,0.028808]
[1771067625216,0.028807,70031.0,70022.0,0.01448]
[1771067625919,0.01452,70031.0,70026.0,0.014288]
[1771067626424,0.014286,70033.0,70025.0,0.014288]
[1771067626722,0.014286,70033.0,70028.0,0.014287]
[1771067627123,0.01448,70034.0,70022.0,0.01448]
[1771067627124,0.028766,70034.0,70022.0,0.01448]
[1771067627317,0.01448,70034.0,70028.0,0.014287]
[1771067627513,0.01448,70034.0,70024.0,0.014288]
[1771067627718,0.014287,70030.0,70022.0,0.01448]
[1771067628022,0.014287,70029.0,70020.0,0.01448]
[1771067628222,0.014287,70028.0,70023.0,0.014288]
[1771067628919,0.10043372,70035.0,70021.0,0.014289]
[1771067628920,0.014286,70034.0,70026.0,0.014288]
[1771067629222,0.01448,70033.0,70029.0,0.014287]
[1771067629422,0.01448,70033.0,70025.0,0.014288]
[1771067629727,0.01448,70048.0,70043.0,0.014284]
[1771067629914,0.01448,70048.0,70020.0,0.714474]
[1771067629915,0.14292,70056.0,70037.0,0.09579931]
[1771067630116,0.0002,70089.0,70064.0,0.09579931]
[1771067630417,0.713633,70103.0,70038.0,0.871683]
[1771067630418,0.14428487,70138.0,70086.0,0.713801]
[1771067630614,0.22946726,70137.0,70112.0,0.09579931]
[1771067630812,0.11503372,70136.0,70112.0,0.01427]
[1771067631011,0.014268,70125.0,70110.0,0.0146]
[1771067631224,0.0146,70130.0,70119.0,0.09579931]
[1771067631422,0.0146,70141.0,70121.0,0.09182369]
[1771067631627,0.10043372,70184.0,70133.0,0.0946084]
[1771067631921,0.712397,70225.0,70143.0,0.0946084]
[1771067631922,0.10043372,70176.0,70143.0,0.0946084]
[1771067632118,0.4255679,70221.0,70178.0,0.09369598]
[1771067632320,0.11503372,70199.0,70176.0,0.0146]
[1771067632515,0.10043372,70213.0,70179.0,0.11043931]
[1771067632717,0.10043372,70213.0,70142.0,0.71323]
[1771067632718,0.014248,70222.0,70191.0,0.09579931]
[1771067632918,0.05004184,70219.0,70188.0,3.1e-07]
[1771067633216,0.60442616,70242.0,70179.0,0.01468]
[1771067633217,0.014252,70202.0,70179.0,0.01468]
[1771067633420,0.11468472,70209.0,70175.0,0.14288]
[1771067633421,0.01472,70201.0,70175.0,0.09579931]
[1771067633615,0.014256,70183.0,70176.0,0.01472]
[1771067633817,0.01472,70191.0,70176.0,0.01472]
[1771067634119,0.14284,70190.0,70173.0,0.01472]
[1771067634322,0.014257,70179.0,70140.0,0.09579931]
[1771067634526,0.014257,70179.0,70109.0,0.014271]
[1771067634527,0.10043372,70158.0,70149.0,0.0002]
[1771067634718,0.10043372,70158.0,70126.0,0.09579931]
[1771067634719,0.014267,70129.0,70124.0,0.01472]
[1771067634925,0.10043372,70151.0,70118.0,0.23363931]
[1771067634926,0.014267,70130.0,70125.0,0.01472]
[1771067635219,0.014266,70134.0,70117.0,0.01472]
[1771067635220,0.014268,70125.0,70117.0,0.01472]
[1771067635424,0.014268,70125.0,70103.0,0.21364145]
[1771067635425,0.014269,70121.0,70100.0,0.11051931]
[1771067635730,0.01438703,70124.0,70100.0,0.11051931]
[1771067635731,0.01472,70120.0,70100.0,0.11051931]
[1771067635921,0.01472,70120.0,70083.0,0.00011494]
[1771067635922,0.10043372,70119.0,70083.0,0.09591425]
[1771067636221,0.10043372,70111.0,70084.0,0.15752]
[1771067636427,0.028529,70118.0,70099.0,0.014273]
[1771067636630,0.01427,70116.0,70100.0,0.01472]
[1771067636923,0.01427,70116.0,70094.0,0.014274]
[1771067636924,0.014271,70108.0,70090.0,0.01472]
[1771067637124,0.01472,70110.0,70090.0,0.01472]
[1771067637319,0.014273,70099.0,70090.0,0.01472]
[1771067637518,0.014273,70098.0,70086.0,0.1428]
[1771067637719,0.014273,70098.0,70087.0,0.01472]
[1771067637919,0.1428,70099.0,70088.0,0.014275]
[1771067638221,0.014272,70102.0,70086.0,0.11051931]
[1771067638429,0.014273,70101.0,70086.0,0.11051931]
[1771067638624,0.014272,70105.0,70087.0,0.014275]
[1771067638824,0.014272,70103.0,70086.0,0.01472]
[1771067639123,0.014273,70099.0,70086.0,0.01472]
[1771067639325,0.014275,70091.0,70078.0,0.09599931]
[1771067639527,0.01472,70091.0,70060.0,0.09579931]
[1771067639727,0.10043372,70087.0,70056.0,0.1428]
[1771067639932,0.10043372,70076.0,70044.0,0.1428]
[1771067640230,0.014282,70089.0,70052.0,0.09579931]
[1771067640526,0.01472,70092.0,70072.0,0.014278]
[1771067640827,0.014271,70107.0,70072.0,0.01472]
[1771067640828,0.014276,70084.0,70072.0,0.01472]
[1771067641022,0.014277,70081.0,70072.0,0.01472]
[1771067641218,0.01472,70084.0,70072.0,0.01472]
[1771067641523,0.028996,70083.0,70072.0,0.028998]
[1771067641717,0.01472,70083.0,70075.0,0.014278]
[1771067641917,0.014276,70084.0,70072.0,0.01472]
[1771067642225,0.014278,70074.0,70066.0,0.01472]
[1771067642423,0.014278,70076.0,70062.0,0.1428]
[1771067642424,0.014279,70070.0,70063.0,0.01472]
[1771067642722,0.014279,70071.0,70063.0,0.01472]
[1771067642928,0.014279,70069.0,70058.0,0.11776163]
[1771067643121,0.014279,70072.0,70061.0,0.014281]
[1771067643326,0.01428,70066.0,70059.0,0.01472]
[1771067643530,0.01428,70064.0,70059.0,0.01472]
[1771067643724,0.014279,70067.0,70056.0,0.01472]
[1771067643931,0.01428,70065.0,70056.0,0.01472]
[1771067644121,0.01472,70065.0,70052.0,0.1428]
[1771067644317,0.01472,70065.0,70054.0,0.014282]
[1771067644525,0.01472,70065.0,70047.0,0.014283]
[1771067644526,0.01428,70064.0,70044.0,0.014284]
[1771067644726,0.01428,70063.0,70046.0,0.014284]
[1771067644923,0.00665035,70064.0,70041.0,0.13204663]
[1771067645227,0.014281,70060.0,70044.0,0.014284]
[1771067645427,0.01472,70059.0,70046.0,0.014283]
[1771067645733,0.01472,70063.0,70059.0,0.001]
[1771067646028,0.01472,70065.0,70059.0,0.001]
[1771067646331,0.00665035,70064.0,70057.0,0.014281]
[1771067646518,0.029,70065.0,70058.0,0.014281]
[1771067646519,0.01472,70065.0,70058.0,0.014281]
[1771067646831,0.014279,70067.0,70059.0,0.014281]
[1771067647022,0.01428,70066.0,70059.0,0.014281]
[1771067647226,0.01428,70065.0,70058.0,0.01472]
[1771067647726,0.0428,70068.0,70062.0,0.01428]
[1771067648124,0.00665035,70066.0,70062.0,0.01428]
[1771067648326,0.014279,70071.0,70063.0,0.01428]
[1771067648529,0.014279,70071.0,70064.0,0.01428]
[1771067648727,0.014279,70069.0,70062.0,0.01428]
[1771067648926,0.028999,70070.0,70062.0,0.01428]
[1771067649132,0.01472,70070.0,70065.0,0.01428]
[1771067649329,0.01472,70070.0,70064.0,0.01428]
[1771067649635,0.014276,70084.0,70060.0,0.014281]
[1771067649636,0.01472,70087.0,70078.0,0.014277]
[1771067649835,0.014276,70086.0,70078.0,0.014277]
[1771067650030,0.1428,70090.0,70078.0,0.014277]
[1771067650336,0.143,70152.0,70082.0,0.014276]
[1771067650337,0.014273,70099.0,70082.0,0.014276]
[1771067650527,0.014273,70099.0,70079.0,0.15752]
[1771067650528,0.01472,70100.0,70083.0,0.01472]
[1771067650832,0.01472,70100.0,70079.0,0.1428]
[1771067650833,0.014273,70098.0,70090.0,0.014275]
[1771067651030,0.014273,70097.0,70090.0,0.014275]
[1771067651227,0.014273,70097.0,70088.0,0.01472]
[1771067651228,0.071791,70107.0,70099.0,0.014273]
[1771067651429,0.014272,70102.0,70095.0,0.014274]
[1771067651627,0.01472,70101.0,70095.0,0.014274]
[1771067651832,0.014272,70104.0,70096.0,0.014273]
[1771067652021,0.014272,70103.0,70094.0,0.014274]
[1771067652221,0.014269,70118.0,70102.0,0.014272]
[1771067652430,0.001,70107.0,70100.0,0.014273]
[1771067652637,0.001,70107.0,70101.0,0.014272]
[1771067652934,0.1428,70117.0,70101.0,0.014272]
[1771067652935,0.01468,70109.0,70102.0,0.014272]
[1771067653129,0.014271,70110.0,70102.0,0.014272]
[1771067653332,0.014269,70121.0,70083.0,0.014276]
[1771067653535,0.014269,70117.0,70108.0,0.014271]
[1771067653736,0.01427,70115.0,70108.0,0.014271]
[1771067654033,0.01427,70114.0,70106.0,0.014271]
[1771067654327,0.15752,70116.0,70095.0,0.01468]
[1771067654328,0.11968278,70115.0,70095.0,0.01468]
[1771067654527,0.01427,70114.0,70092.0,0.01468]
[1771067654733,0.014273,70101.0,70090.0,0.014275]
[1771067654934,0.01468,70100.0,70092.0,0.014274]
[1771067655237,0.014273,70097.0,70089.0,0.171755]
[1771067655537,0.01468,70099.0,70093.0,0.014274]
[1771067655729,0.014274,70096.0,70089.0,0.15748]
[1771067656034,0.014274,70096.0,70090.0,0.014275]
[1771067656236,0.014274,70096.0,70089.0,0.15748]
[1771067656237,0.028953,70099.0,70093.0,0.014274]
[1771067656536,0.014274,70095.0,70089.0,0.171755]
[1771067656925,0.014274,70095.0,70083.0,0.00071344]
[1771067656926,0.014275,70092.0,70083.0,0.14347344]
[1771067657131,0.014274,70096.0,70087.0,0.014275]
[1771067657132,0.014274,70093.0,70087.0,0.014275]
[1771067657431,0.01468,70109.0,70107.0,0.014271]
[1771067657737,0.01468,70129.0,70126.0,0.014267]
[1771067657936,0.014266,70131.0,70123.0,0.014268]
[1771067658132,0.01472,70131.0,70125.0,0.014268]
[1771067658332,0.01472,70131.0,70118.0,0.01472]
[1771067658528,0.028534,70129.0,70112.0,0.15703]
[1771067658734,0.014269,70117.0,70112.0,0.14276]
[1771067658936,0.11968278,70133.0,70112.0,0.14276]
[1771067658937,0.11968278,70138.0,70116.0,0.014269]
[1771067659137,0.014269,70118.0,70112.0,0.01075265]
[1771067659331,0.014269,70118.0,70111.0,0.01427]
[1771067659531,0.014269,70116.0,70108.0,0.014271]
[1771067659731,0.028989,70116.0,70109.0,0.014271]
[1771067659937,0.01427,70113.0,70106.0,0.014271]
[1771067660236,0.01472,70116.0,70098.0,0.0002]
[1771067660237,0.02856277,70106.0,70102.0,0.014272]
[1771067660441,0.01472,70112.0,70105.0,0.014272]
[1771067660738,0.01427,70114.0,70102.0,0.014272]
[1771067660944,0.01427,70112.0,70105.0,0.014272]
[1771067661140,0.014271,70109.0,70099.0,0.01472]
[1771067661334,0.01472,70109.0,70099.0,0.028993]
[1771067661540,0.014271,70106.0,70099.0,0.028993]
[1771067661737,0.01472,70105.0,70094.0,0.14276]
[1771067661937,0.014273,70100.0,70095.0,0.014274]
[1771067662146,0.01472,70101.0,70093.0,0.0001395]
[1771067662343,0.014274,70095.0,70088.0,0.01472]
[1771067662540,0.014274,70095.0,70089.0,0.014275]
[1771067662740,0.0291325,70100.0,70088.0,0.01472]
[1771067662946,0.014273,70097.0,70088.0,0.01472]
[1771067663138,0.01472,70096.0,70084.0,0.14276]
[1771067663340,0.01472,70095.0,70082.0,0.0002]
[1771067663545,0.014275,70090.0,70082.0,0.014276]
[1771067663750,0.01472,70090.0,70084.0,0.028552]
[1771067664056,0.13395778,70088.0,70065.0,0.01428]
[1771067664350,0.014276,70084.0,70074.0,0.014278]
[1771067664546,0.014275,70091.0,70075.0,0.014278]
[1771067664742,0.15748,70090.0,70082.0,0.014276]
[1771067664943,0.014276,70084.0,70077.0,0.014277]
[1771067665149,0.028996,70085.0,70078.0,0.014277]
[1771067665447,0.014276,70082.0,70076.0,0.014278]
[1771067665644,0.00013191,70081.0,70067.0,0.01472]
[1771067666047,0.014276,70083.0,70076.0,0.014277]
[1771067666245,0.014274,70094.0,70074.0,0.014278]
[1771067666553,0.014276,70086.0,70080.0,0.014277]
[1771067666749,0.01472,70085.0,70080.0,0.014277]
[1771067667048,0.01472,70085.0,70071.0,0.01472]
[1771067667049,0.01472,70085.0,70071.0,0.014278]
[1771067667243,0.01472,70085.0,70068.0,0.42970756]
[1771067667438,0.13395378,70108.0,70076.0,0.11776163]
[1771067667646,0.22042878,70107.0,70087.0,0.014275]
[1771067667846,0.014274,70095.0,70087.0,0.014275]
[1771067668048,0.014275,70091.0,70085.0,0.014276]
[1771067668245,0.13395678,70093.0,70072.0,0.014278]
[1771067668448,0.014276,70084.0,70073.0,0.028998]
[1771067668652,0.028996,70084.0,70074.0,0.014278]
[1771067668949,0.01472,70084.0,70078.0,0.014277]
[1771067669344,0.01472,70084.0,70080.0,0.014277]
[1771067669651,0.01472,70083.0,70080.0,0.014277]
[1771067669841,0.01472,70083.0,70070.0,0.32666593]
[1771067670042,0.01072,70083.0,70075.0,0.014278]
[1771067670242,0.01072,70083.0,70079.0,0.014277]
[1771067670440,0.01472,70090.0,70086.0,0.014276]
[1771067670639,0.01472,70089.0,70086.0,0.014275]
[1771067670855,0.01472,70089.0,70085.0,0.014276]
[1771067670856,0.01472,70089.0,70087.0,0.014275]
[1771067671050,0.01427,70111.0,70086.0,0.14753576]
[1771067671251,0.01427,70111.0,70104.0,0.014272]
[1771067671453,0.14276,70126.0,70104.0,0.01472]
[1771067671645,0.01472,70125.0,70110.0,0.014271]
[1771067671846,0.014268,70122.0,70116.0,0.014269]
[1771067672154,0.14276,70127.0,70104.0,0.157032]
[1771067672155,0.028987,70127.0,70120.0,0.014269]
[1771067672353,0.014268,70124.0,70114.0,0.01427]
[1771067672647,0.014267,70126.0,70119.0,0.014269]
[1771067672847,0.014265,70136.0,70129.0,0.014267]
[1771067673047,0.014265,70141.0,70115.0,0.14753576]
[1771067673048,0.15748,70135.0,70115.0,0.14753576]
[1771067673241,0.15748,70135.0,70107.0,0.32876168]
[1771067673242,0.014267,70130.0,70123.0,0.01222609]
[1771067673449,0.01472,70129.0,70110.0,0.13281576]
[1771067673654,0.14276,70130.0,70127.0,0.014267]
[1771067673853,0.01472,70129.0,70128.0,0.014267]
[1771067674042,0.15748,70129.0,70114.0,0.01427]
[1771067674242,0.014268,70125.0,70116.0,0.014269]
[1771067674454,0.014266,70134.0,70118.0,0.014269]
[1771067674746,0.713171,70148.0,70115.0,0.014269]
[1771067674747,0.15748,70133.0,70128.0,0.014267]
[1771067674955,0.14276,70132.0,70125.0,0.014268]
[1771067675155,0.13401965,70175.0,70143.0,0.13281576]
[1771067675354,0.014257,70180.0,70157.0,0.13281576]
[1771067675545,0.014258,70173.0,70165.0,0.014259]
[1771067675748,0.014259,70169.0,70162.0,0.01426]
[1771067675958,0.01476,70171.0,70158.0,0.14276]
[1771067676153,0.014261,70159.0,70154.0,0.01476]
[1771067676461,0.13401965,70157.0,70130.0,0.14276]
[1771067676758,0.13401965,70167.0,70137.0,0.014265]
[1771067676956,0.13401965,70167.0,70145.0,0.014264]
[1771067676957,0.01476,70166.0,70145.0,0.014264]
[1771067677255,0.01476,70166.0,70134.0,0.13281576]
[1771067677256,0.14877965,70166.0,70134.0,0.13281576]
[1771067677453,0.13401965,70160.0,70135.0,0.01476]
[1771067677655,0.014261,70158.0,70146.0,0.014263]
[1771067677957,0.14272,70157.0,70133.0,0.14272]
[1771067678155,0.014263,70149.0,70139.0,0.014265]
[1771067678361,0.029023,70149.0,70143.0,0.014264]
[1771067678664,0.014263,70150.0,70143.0,0.014264]
[1771067678864,0.029023,70149.0,70142.0,0.014264]
[1771067679064,0.029023,70149.0,70141.0,0.014264]
[1771067679253,0.014263,70148.0,70141.0,0.014264]
[1771067679564,0.014263,70148.0,70139.0,0.014265]
[1771067679860,0.014263,70148.0,70141.0,0.014264]
[1771067680055,0.014263,70148.0,70139.0,0.014265]
[1771067680056,0.014263,70147.0,70139.0,0.014265]
[1771067680253,0.014263,70147.0,70133.0,0.15748]
[1771067680458,0.014263,70149.0,70143.0,0.014264]
[1771067680754,0.014263,70149.0,70133.0,0.171746]
[1771067680755,0.15748,70151.0,70133.0,0.15748]
[1771067680958,0.01476,70150.0,70139.0,0.014265]
[1771067681163,0.15748,70149.0,70141.0,0.014264]
[1771067681462,0.014263,70147.0,70141.0,0.014264]
[1771067681663,0.15748,70149.0,70133.0,0.15748]
[1771067681856,0.014263,70146.0,70139.0,0.014265]
[1771067682161,0.014263,70147.0,70140.0,0.014265]
[1771067682162,0.01476,70145.0,70140.0,0.014265]
[1771067682762,0.01476,70145.0,70137.0,0.014265]
[1771067682964,0.14268,70148.0,70133.0,0.15748]
[1771067682965,0.15744,70148.0,70136.0,0.014265]
[1771067683257,0.014263,70147.0,70141.0,0.014264]
[1771067683453,0.071703,70148.0,70141.0,0.014264]
[1771067683855,0.014263,70146.0,70139.0,0.014265]
[1771067684661,0.071703,70148.0,70138.0,0.014265]
[1771067684859,0.014264,70142.0,70133.0,0.171746]
[1771067685161,0.014264,70141.0,70135.0,0.014266]
[1771067685355,0.014264,70141.0,70134.0,0.014266]
[1771067685665,0.014265,70140.0,70133.0,0.014266]
[1771067685864,0.01472,70142.0,70129.0,0.014267]
[1771067686052,0.014264,70141.0,70133.0,0.014266]
[1771067686360,0.028984,70142.0,70133.0,0.014266]
[1771067686361,0.01472,70142.0,70134.0,0.014266]
[1771067686555,0.014264,70141.0,70134.0,0.014266]
[1771067686756,0.014265,70138.0,70131.0,0.014266]
[1771067686959,0.01472,70137.0,70132.0,0.014266]
[1771067687158,0.01472,70137.0,70129.0,0.014267]
[1771067687159,0.028985,70137.0,70129.0,0.014267]
[1771067687360,0.014266,70133.0,70125.0,0.171667]
[1771067687663,0.014267,70127.0,70120.0,0.014269]
[1771067687861,0.014268,70123.0,70116.0,0.01472]
[1771067688160,0.028988,70124.0,70118.0,0.014269]
[1771067688354,0.01472,70124.0,70114.0,0.14268]
[1771067688555,0.028988,70124.0,70118.0,0.014269]
[1771067688759,0.014269,70120.0,70114.0,0.14268]
[1771067689060,0.014269,70117.0,70110.0,0.01427]
[1771067689259,0.01472,70116.0,70110.0,0.01427]
[1771067689455,0.01472,70116.0,70102.0,0.01472]
[1771067689456,0.014271,70110.0,70102.0,0.01472]
[1771067689657,0.014272,70106.0,70098.0,0.14268]
[1771067689853,0.014272,70106.0,70100.0,0.014273]
[1771067690060,0.028992,70106.0,70098.0,0.14268]
[1771067690362,0.01472,70106.0,70098.0,0.156953]
[1771067690553,0.01472,70106.0,70104.0,0.014272]
[1771067690753,0.014265,70136.0,70109.0,0.14670959]
[1771067690966,0.01472,70131.0,70116.0,0.14670959]
[1771067691162,0.14268,70134.0,70131.0,0.014266]
[1771067691358,0.01472,70133.0,70128.0,0.014267]
[1771067691566,0.01472,70132.0,70129.0,0.014267]